bitfinex/quotes_SOLUSD_20250722
["timestamp","ask_amount","ask_price","bid_price","bid_amount"]
[1753150115495,38.64,202.62,202.57,30.93653175]
[1753150115663,16.78468397,202.66,202.61,11.63380537]
[1753150115862,39.35,202.65,202.62,11.63380537]
[1753150116079,0.71,202.65,202.62,11.63380537]
[1753150116285,38.64,202.64,202.62,11.63380537]
[1753150116662,38.64,202.64,202.63,11.63380537]
[1753150117379,43.57485984,202.64,202.62,11.63380537]
[1753150117583,0.71,202.63,202.61,11.63380537]
[1753150117887,38.64,202.64,202.61,11.63380537]
[1753150118385,38.64,202.64,202.63,11.63380537]
[1753150118866,38.64,202.64,202.62,11.63380537]
[1753150119069,44.25485984,202.64,202.61,11.63380537]
[1753150119487,39.32,202.64,202.62,11.63380537]
[1753150119982,38.64,202.64,202.63,11.63380537]
[1753150120190,38.48,202.64,202.63,11.63380537]
[1753150121002,0.06,202.69,202.63,17.17890876]
[1753150121172,0.06,202.69,202.68,11.63380537]
[1753150121373,38.52,202.69,202.68,11.63380537]
[1753150121980,38.5,202.69,202.68,11.63380537]
[1753150122183,39.18,202.69,202.67,11.63380537]
[1753150122493,38.5,202.69,202.67,11.63380537]
[1753150123995,38.5,202.69,202.68,11.63380537]
[1753150124487,39.18,202.69,202.67,11.63380537]
[1753150124706,38.5,202.69,202.67,11.63380537]
[1753150124869,16.78468397,202.67,202.63,11.63380537]
[1753150125066,43.95437284,202.66,202.63,11.63380537]
[1753150125481,0.68,202.65,202.58,30.93626806]
[1753150125680,43.27437284,202.66,202.64,11.63380537]
[1753150126101,43.95437284,202.66,202.62,11.63380537]
[1753150126395,0.68,202.65,202.61,11.63380537]
[1753150126601,0.68,202.64,202.61,11.63380537]
[1753150126783,38.3,202.63,202.61,11.63380537]
[1753150127508,0.68,202.62,202.57,0.03]
[1753150127812,0.68,202.62,202.59,11.63380537]
[1753150128299,17.46468397,202.61,202.57,0.03]
[1753150128502,38.3,202.6,202.57,0.03]
[1753150128802,38.98,202.6,202.57,0.03]
[1753150129400,4.93607779,202.59,202.57,0.03]
[1753150129717,38.98,202.6,202.57,11.66380537]
[1753150130694,43.91586365,202.6,202.57,11.66380537]
[1753150130893,43.91583474,202.6,202.57,11.66380537]
[1753150133190,43.23583474,202.6,202.57,11.66380537]
[1753150133606,43.23583474,202.6,202.57,0.03]
[1753150134105,43.91583474,202.6,202.57,0.03]
[1753150134904,38.3,202.6,202.58,11.63380537]
[1753150135216,38.98,202.59,202.57,0.03]
[1753150135389,16.78468397,202.58,202.57,0.03]
[1753150135706,11.63380537,202.62,202.57,0.03]
[1753150135905,26.0,202.65,202.58,11.63380537]
[1753150135906,0.68,202.61,202.58,11.63380537]
[1753150136082,38.98,202.6,202.57,0.03]
[1753150136289,16.78468397,202.59,202.57,0.03]
[1753150136498,21.72100542,202.58,202.57,0.03]
[1753150136714,22.40100542,202.58,202.57,0.03]
[1753150137519,34.03481079,202.58,202.57,1e-08]
[1753150137713,38.02684793,202.58,202.57,1e-08]
[1753150138127,26.39304256,202.58,202.57,1e-08]
[1753150138320,38.02684793,202.58,202.57,1e-08]
[1753150138709,76.32684793,202.58,202.57,1e-08]
[1753150139325,72.33481079,202.58,202.57,1e-08]
[1753150139721,60.70100542,202.58,202.57,1e-08]
[1753150140928,16.78468397,202.57,202.48,0.03]
[1753150141111,16.78468397,202.52,202.48,0.03]
[1753150141433,16.78468397,202.55,202.51,11.63380537]
[1753150141814,38.3,202.54,202.51,11.63380537]
[1753150142009,0.68,202.57,202.48,5.57866645]
[1753150142010,1.5808,202.67,202.53,11.63380537]
[1753150142247,0.68,202.64,202.61,11.63380537]
[1753150142421,38.3,202.63,202.61,11.63380537]
[1753150142617,38.3,202.63,202.51,26.0]
[1753150142618,5.61534695,202.62,202.51,26.0]
[1753150142836,5.61534695,202.62,202.5,12.34528738]
[1753150142837,28.41848934,202.6,202.54,11.63380537]
[1753150143032,38.98,202.59,202.53,11.63380537]
[1753150143237,17.46468397,202.58,202.53,11.63380537]
[1753150143417,17.46468397,202.58,202.54,11.63380537]
[1753150143612,38.3,202.57,202.55,11.63380537]
[1753150143922,55.08468397,202.57,202.56,11.63380537]
[1753150144115,55.08468397,202.57,202.55,11.63380537]
[1753150144320,38.3,202.57,202.56,11.63380537]
[1753150144529,12.33678585,202.65,202.56,11.63380537]
[1753150144530,4.16713218,202.69,202.57,4.93656513]
[1753150144717,38.3,202.67,202.66,11.63380537]
[1753150145132,16.78468397,202.66,202.63,11.63380537]
[1753150145524,17.46468397,202.66,202.63,11.63380537]
[1753150145840,16.78468397,202.66,202.59,26.0]
[1753150146132,16.78468397,202.66,202.65,11.63380537]
[1753150146322,38.3,202.67,202.65,11.63380537]
[1753150146526,38.3,202.67,202.66,11.63380537]
[1753150147540,0.06,202.69,202.68,26.0]
[1753150147738,0.06,202.73,202.68,37.63380537]
[1753150147918,0.06,202.73,202.72,11.63380537]
[1753150148420,38.3,202.81,202.75,26.0]
[1753150148615,38.3,202.81,202.77,16.56550138]
[1753150149017,38.3,202.81,202.77,16.99550138]
[1753150149217,0.86,202.9,202.8,26.0]
[1753150149417,0.2,202.9,202.84,11.63380537]
[1753150149942,0.2,202.9,202.84,12.00380537]
[1753150150317,0.2,202.9,202.83,26.0]
[1753150150318,0.2,202.9,202.89,11.63380537]
[1753150150835,4.92416781,203.08,202.89,33.34726848]
[1753150151036,0.66,203.09,203.05,11.63380537]
[1753150151340,0.66,203.09,203.08,11.63380537]
[1753150151522,0.66,203.09,203.01,26.0]
[1753150151716,0.66,203.09,203.08,11.63380537]
[1753150151922,0.66,203.09,203.01,26.0]
[1753150152139,0.66,203.09,203.05,11.63380537]
[1753150152637,0.66,203.08,202.93,26.0]
[1753150152825,21.70909427,203.07,203.0,11.63380537]
[1753150153025,0.66,203.06,203.01,11.63380537]
[1753150153225,16.78468397,203.04,203.02,11.63380537]
[1753150153442,0.66,203.03,203.0,11.63380537]
[1753150153644,0.66,203.03,202.93,30.92771131]
[1753150153645,4.08481953,203.14,203.02,11.63380537]
[1753150153824,16.78468397,203.09,203.01,26.0]
[1753150154023,16.78468397,203.09,203.07,11.63380537]
[1753150154227,17.44468397,203.12,203.08,11.63380537]
[1753150154527,0.66,203.11,203.1,11.63380537]
[1753150155121,0.66,203.11,203.08,11.63380537]
[1753150155438,38.24,203.13,203.1,11.63380537]
[1753150155439,38.9,203.13,203.1,11.63380537]
[1753150155651,0.66,203.12,203.11,11.63380537]
[1753150155819,38.24,203.13,203.11,11.63380537]
[1753150155820,38.9,203.13,203.11,11.63380537]
[1753150156022,4.9231981,203.12,203.11,11.63380537]
[1753150156222,16.78468397,203.11,202.98,11.63380537]
[1753150156448,0.66,203.1,203.08,11.63380537]
[1753150156825,4.92392535,203.09,203.08,11.63380537]
[1753150157130,26.0,203.03,202.85,4.92975104]
[1753150157335,49.87380537,203.02,202.85,4.92975104]
[1753150157536,49.87380537,203.02,202.95,11.63380537]
[1753150157722,0.66,203.01,202.94,11.63380537]
[1753150157918,11.63380537,202.99,202.92,11.63380537]
[1753150158125,11.63380537,202.96,202.89,11.63380537]
[1753150158331,38.22,202.95,202.91,11.63380537]
[1753150158732,38.22,202.95,202.92,11.63380537]
[1753150158928,38.22,202.95,202.9,11.63380537]
[1753150159149,38.22,202.95,202.82,18.48680057]
[1753150159150,43.14739784,202.95,202.89,11.63380537]
[1753150159728,11.63380537,202.9,202.81,11.63380537]
[1753150159935,11.63380537,202.85,202.78,14.785244]
[1753150160135,28.41848934,202.79,202.78,14.785244]
[1753150160445,28.41848934,202.79,202.62,1.5548]
[1753150160446,16.78468397,202.78,202.62,4.93528579]
[1753150160759,16.78468397,202.72,202.64,11.63380537]
[1753150161057,16.78468397,202.72,202.56,10.0]
[1753150161058,38.22,202.71,202.65,11.63380537]
[1753150161744,38.22,202.71,202.56,10.0]
[1753150161745,38.22,202.71,202.69,11.63380537]
[1753150161953,38.22,202.78,202.73,26.0]
[1753150162139,38.22,202.78,202.77,11.63380537]
[1753150162839,38.22,202.78,202.72,30.93275524]
[1753150163144,38.22,202.78,202.77,11.63380537]
[1753150163756,38.22,202.82,202.77,11.63380537]
[1753150163929,35.46,202.84,202.81,11.63380537]
[1753150164135,38.22,202.83,202.76,26.0]
[1753150164533,38.22,202.85,202.76,26.0]
[1753150164933,38.22,202.85,202.78,26.0]
[1753150165154,38.88,202.89,202.82,26.0]
[1753150165341,38.88,202.89,202.88,11.63380537]
[1753150165537,43.80889831,202.89,202.87,11.63380537]
[1753150165762,38.22,202.89,202.88,11.63380537]
[1753150166632,38.22,202.9,202.88,11.63380537]
[1753150166829,38.22,202.9,202.82,26.0]
[1753150166830,38.22,202.9,202.89,11.63380537]
[1753150167730,16.78468397,202.95,202.89,11.63380537]
[1753150167938,16.78468397,202.93,202.87,11.63380537]
[1753150168136,0.66,202.92,202.87,11.63380537]
[1753150168348,16.78468397,202.9,202.85,11.63380537]
[1753150168541,38.88,202.89,202.85,11.63380537]
[1753150168745,0.66,202.88,202.85,11.63380537]
[1753150168931,4.92950803,202.86,202.83,11.63380537]
[1753150169132,4.92950803,202.86,202.82,11.63380537]
[1753150169331,0.66,202.85,202.82,11.63380537]
[1753150169548,38.22,202.84,202.81,11.63380537]
[1753150169740,38.88,202.84,202.81,11.63380537]
[1753150170447,4.93023714,202.83,202.81,11.63380537]
[1753150170643,0.66,202.82,202.79,11.63380537]
[1753150170842,0.66,202.81,202.77,11.63380537]
[1753150171047,0.66,202.8,202.77,11.63380537]
[1753150171237,0.66,202.8,202.78,11.63380537]
[1753150171758,0.66,202.85,202.79,11.63380537]
[1753150171938,38.22,202.84,202.75,26.0]
[1753150172138,38.22,202.84,202.83,11.63380537]
[1753150172549,16.78468397,202.87,202.83,11.63380537]
[1753150172745,16.78468397,202.87,202.79,4.93097817]
[1753150172746,16.78468397,202.87,202.85,11.63380537]
[1753150172955,38.22,202.86,202.85,11.63380537]
[1753150173147,38.88,202.86,202.83,11.63380537]
[1753150173346,0.66,202.85,202.82,11.63380537]
[1753150173549,16.78468397,202.82,202.76,11.63380537]
[1753150173756,38.22,202.81,202.76,11.63380537]
[1753150173936,17.44468397,202.8,202.74,11.63380537]
[1753150174138,16.78468397,202.78,202.73,11.63380537]
[1753150174351,0.66,202.77,202.73,11.63380537]
[1753150174633,38.88,202.76,202.73,11.63380537]
[1753150174830,16.78468397,202.8,202.75,11.63380537]
[1753150175044,38.88,202.79,202.74,11.63380537]
[1753150175252,38.88,202.79,202.75,11.63380537]
[1753150175460,38.88,202.79,202.76,11.63380537]
[1753150175663,38.88,202.79,202.77,11.63380537]
[1753150175856,55.00468397,202.79,202.71,26.0]
[1753150176154,0.66,202.78,202.74,11.63380537]
[1753150176353,38.22,202.8,202.77,11.63380537]
[1753150176535,38.22,202.8,202.79,11.63380537]
[1753150179264,0.69,202.87,202.79,11.63380537]
[1753150179445,4.92801171,202.93,202.86,11.63380537]
[1753150179649,38.22,202.92,202.91,11.63380537]
[1753150180053,16.78468397,202.91,202.85,11.63380537]
[1753150180363,16.78468397,202.89,202.85,11.63380537]
[1753150180570,16.78468397,202.87,202.82,11.63380537]
[1753150180759,0.69,202.86,202.84,11.63380537]
[1753150181064,0.69,202.86,202.74,12.33099809]
[1753150181065,38.22,202.88,202.85,11.63380537]
[1753150181241,0.69,202.87,202.83,0.03]
[1753150181443,17.47468397,202.87,202.83,11.66380537]
[1753150181667,0.69,202.86,202.84,11.63380537]
[1753150181869,38.22,202.88,202.85,11.63380537]
[1753150182048,0.69,202.87,202.85,11.63380537]
[1753150182370,0.69,202.86,202.84,11.63380537]
[1753150182570,28.41848934,202.85,202.83,0.03]
[1753150182762,16.78468397,202.81,202.75,11.63380537]
[1753150182966,38.2,202.8,202.77,11.63380537]
[1753150183276,38.2,202.8,202.76,11.63380537]
[1753150183448,0.69,202.79,202.74,0.03]
[1753150183649,0.69,202.78,202.74,0.03]
[1753150184076,0.69,202.78,202.75,11.63380537]
[1753150184250,0.69,202.84,202.77,11.63380537]
[1753150184446,38.2,202.83,202.81,11.63380537]
[1753150184744,38.89,202.83,202.8,11.63380537]
[1753150184966,38.2,202.83,202.82,11.63380537]
[1753150185378,6.1641,202.92,202.85,26.0]
[1753150185379,11.78216999,202.92,202.85,26.0]
[1753150185668,38.2,202.92,202.91,11.63380537]
[1753150186367,38.89,202.92,202.89,11.63380537]
[1753150186575,38.89,202.92,202.9,11.63380537]
[1753150187065,43.12813126,202.92,202.9,11.63380537]
[1753150187294,38.89,202.91,202.89,11.63380537]
[1753150187479,38.2,202.91,202.9,11.63380537]
[1753150188552,0.69,202.94,202.9,11.63380537]
[1753150188749,0.06,202.95,202.93,11.63380537]
[1753150189072,0.06,202.95,202.87,26.0]
[1753150189073,0.06,202.95,202.94,11.63380537]
[1753150189255,38.26,202.95,202.94,11.63380537]
[1753150189652,38.95,202.95,202.93,11.63380537]
[1753150189854,0.06,202.95,202.93,11.63380537]
[1753150190058,0.06,202.95,202.88,4.92902208]
[1753150190266,38.26,202.95,202.89,26.0]
[1753150190470,38.26,202.95,202.94,11.63380537]
[1753150190678,38.26,202.95,202.89,26.0]
[1753150190858,38.26,202.95,202.94,11.63380537]
[1753150192579,43.877322,202.95,202.92,11.63380537]
[1753150192767,38.26,202.95,202.94,11.63380537]
[1753150193857,0.06,202.95,202.94,16.56137016]
[1753150194058,0.06,202.95,202.9,26.0]
[1753150194260,0.06,202.95,202.94,11.63380537]
[1753150194669,5.677322,202.95,202.87,30.92924898]
[1753150194879,5.677322,202.95,202.91,11.63380537]
[1753150195078,38.18,202.94,202.91,11.63380537]
[1753150195460,0.69,202.93,202.91,11.63380537]
[1753150195660,0.69,202.93,202.87,30.92924898]
[1753150195661,0.69,202.92,202.9,11.63380537]
[1753150195862,0.69,202.92,202.85,4.92952558]
[1753150195863,0.69,202.91,202.86,11.63380537]
[1753150196086,38.87,202.9,202.86,11.63380537]
[1753150196286,38.87,202.9,202.88,11.63380537]
[1753150197392,38.18,202.9,202.89,11.63380537]
[1753150198166,43.79861013,202.9,202.8,4.93092761]
[1753150198386,0.69,202.89,202.84,11.63380537]
[1753150198578,54.7424155,202.9,202.84,11.63380537]
[1753150198579,0.69,202.88,202.84,11.63380537]
[1753150198966,4.92926504,202.87,202.8,30.93092761]
[1753150199173,38.16,202.86,202.84,11.63380537]
[1753150199565,38.16,202.86,202.85,11.63380537]
[1753150200303,16.78468397,202.85,202.7,6.5311]
[1753150200594,16.78468397,202.85,202.75,11.63380537]
[1753150200595,11.63380537,202.82,202.75,11.63380537]
[1753150201873,0.69,202.87,202.83,11.63380537]
[1753150202077,42.78468397,202.83,202.74,0.03]
[1753150202367,37.63380537,202.82,202.76,11.63380537]
[1753150202579,55.63468397,202.81,202.75,11.63380537]
[1753150202774,28.41848934,202.79,202.74,0.03]
[1753150203287,11.63380537,202.75,202.74,0.03]
[1753150203491,38.16,202.75,202.74,0.03]
[1753150203700,38.16,202.75,202.74,11.66380537]
[1753150203868,38.16,202.75,202.74,0.03]
[1753150204066,38.16,202.75,202.74,11.66380537]
[1753150205393,38.16,202.75,202.74,16.59623113]
[1753150205891,38.18,202.78,202.74,11.66380537]
[1753150206187,38.18,202.78,202.77,11.63380537]
[1753150206390,38.18,202.78,202.76,11.63380537]
[1753150207381,0.69,202.77,202.74,11.66380537]
[1753150207592,38.18,202.78,202.76,11.63380537]
[1753150207900,38.18,202.78,202.77,11.63380537]
[1753150208185,38.18,202.78,202.76,11.63380537]
[1753150208773,38.18,202.78,202.77,11.63380537]
[1753150208974,38.16,202.78,202.77,11.63380537]
[1753150209993,43.80153284,202.78,202.74,11.66380537]
[1753150210309,0.71,202.77,202.74,0.03]
[1753150210601,16.78468397,202.74,202.72,0.03]
[1753150210794,11.63380537,202.73,202.72,0.03]
[1753150210996,12.34380537,202.73,202.72,0.03]
[1753150211192,17.27647443,202.73,202.72,0.03]
[1753150211391,0.71,202.73,202.72,0.03]
[1753150212492,0.71,202.83,202.75,26.0]
[1753150212695,0.71,202.82,202.8,11.63380537]
[1753150213004,38.87,202.81,202.79,11.63380537]
[1753150213203,38.87,202.8,202.78,11.63380537]
[1753150213504,38.16,202.79,202.75,4.93210604]
[1753150213892,0.71,202.8,202.73,4.93266906]
[1753150214092,38.16,202.81,202.76,26.0]
[1753150214413,38.16,202.84,202.77,0.06]
[1753150214705,38.16,202.84,202.83,11.63380537]
[1753150215376,16.78468397,202.9,202.83,16.56404251]
[1753150215698,38.16,202.89,202.88,11.63380537]
[1753150215883,38.87,202.89,202.87,11.63380537]
[1753150216093,17.49468397,202.88,202.85,11.63380537]
[1753150216290,17.49468397,202.87,202.86,11.63380537]
[1753150216582,0.71,202.91,202.86,11.63380537]
[1753150216795,35.48,202.93,202.9,11.63380537]
[1753150216987,35.48,202.93,202.92,11.63380537]
[1753150217190,74.33,202.93,202.92,11.63380537]
[1753150217389,79.25780761,202.93,202.91,11.63380537]
[1753150217586,0.71,202.92,202.9,11.63380537]
[1753150217788,0.71,202.91,202.9,11.63380537]
[1753150218174,0.71,202.91,202.84,4.92999408]
[1753150218175,0.71,202.91,202.84,30.92999408]
[1753150218389,0.71,202.91,202.9,11.63380537]
[1753150218800,0.71,202.91,202.89,11.63380537]
[1753150219000,0.71,202.91,202.9,11.63380537]
[1753150219502,16.78468397,202.9,202.76,0.06]
[1753150219805,16.78468397,202.88,202.85,11.63380537]
[1753150220002,17.49468397,202.88,202.86,11.63380537]
[1753150220203,38.14,202.89,202.87,11.63380537]
[1753150220386,38.14,202.89,202.88,11.63380537]
[1753150221294,36.19,202.93,202.88,11.63380537]
[1753150221495,0.77,202.95,202.92,11.63380537]
[1753150221698,16.78468397,202.93,202.89,11.63380537]
[1753150222007,16.78468397,202.91,202.85,11.63380537]
[1753150222205,38.85,202.9,202.83,26.0]
[1753150222405,38.85,202.9,202.85,11.63380537]
[1753150222706,38.85,202.9,202.79,0.06]
[1753150222707,16.78468397,202.88,202.84,11.63380537]
[1753150222909,16.78468397,202.86,202.8,11.63380537]
[1753150223105,38.14,202.85,202.8,11.63380537]
[1753150223293,4.92926504,202.87,202.83,11.63380537]
[1753150223492,0.06,202.95,202.84,0.06]
[1753150223697,0.06,202.95,202.94,11.63380537]
[1753150223892,38.18,202.95,202.94,11.63380537]
[1753150224693,0.06,202.95,202.94,11.63380537]
[1753150225112,38.18,202.95,202.94,11.63380537]
[1753150225425,43.817322,202.95,202.92,11.63380537]
[1753150225584,43.107322,202.95,202.92,11.63380537]
[1753150225792,0.71,202.94,202.92,11.63380537]
[1753150225989,0.71,202.93,202.86,4.92948917]
[1753150226212,0.71,202.93,202.92,11.63380537]
[1753150226406,16.78468397,202.94,202.92,11.63380537]
[1753150226609,17.49468397,202.94,202.82,1.5199]
[1753150226799,17.49468397,202.94,202.9,11.63380537]
[1753150227123,0.71,202.93,202.9,11.63380537]
[1753150227294,16.78468397,202.94,202.9,11.63380537]
[1753150227495,5.63806189,202.92,202.9,11.63380537]
[1753150227709,38.12,202.91,202.9,11.63380537]
[1753150228434,38.12,202.93,202.9,11.63380537]
[1753150228592,38.12,202.93,202.92,11.63380537]
[1753150229316,0.06,202.95,202.92,11.63380537]
[1753150229494,0.06,202.95,202.94,11.63380537]
[1753150229900,0.06,203.0,202.97,26.0]
[1753150230106,0.06,203.0,202.99,11.63380537]
[1753150230300,0.06,203.02,202.99,11.63380537]
[1753150230496,0.06,203.02,203.01,11.63380537]
[1753150231412,0.06,203.02,203.01,16.55967109]
[1753150232421,38.1,203.12,203.01,28.87433539]
[1753150233003,0.71,203.11,203.01,4.92586572]
[1753150233223,0.71,203.11,203.07,11.63380537]
[1753150233400,0.71,203.11,203.09,11.63380537]
[1753150233799,0.71,203.1,203.07,11.63380537]
[1753150234318,0.71,203.1,203.08,11.63380537]
[1753150235119,38.08,203.09,203.08,11.63380537]
[1753150235314,93.20848934,203.09,202.91,6.6641]
[1753150235503,11.63380537,203.07,202.92,4.92805046]
[1753150235815,11.63380537,203.19,203.0,16.78468397]
[1753150235996,0.71,203.13,203.09,11.63380537]
[1753150236197,0.71,203.12,203.1,11.63380537]
[1753150236518,16.78468397,203.16,203.1,11.63380537]
[1753150236700,0.71,203.15,203.1,11.63380537]
[1753150236895,0.71,203.14,203.09,11.63380537]
[1753150237116,38.79,203.13,203.09,11.63380537]
[1753150237418,38.08,203.13,203.1,11.63380537]
[1753150237611,0.71,203.12,203.09,11.63380537]
[1753150237916,0.71,203.11,203.1,11.63380537]
[1753150238131,38.06,203.12,203.1,11.63380537]
[1753150238299,38.06,203.12,203.11,11.63380537]
[1753150239015,5.61175575,203.18,203.11,16.55724587]
[1753150239016,38.06,203.17,203.11,16.55724587]
[1753150239202,38.06,203.17,203.16,11.63380537]
[1753150239852,38.06,203.2,203.16,11.63380537]
[1753150240119,11.63380537,203.17,203.13,1.1655935]
[1753150240418,28.41848934,203.14,203.13,1.1655935]
[1753150240724,38.75,203.14,203.13,0.4455935]
[1753150240911,60.45739736,203.14,203.13,0.4455935]
[1753150241105,72.09120273,203.14,203.13,0.4455935]
[1753150241304,84.39798622,203.14,203.06,11.63380537]
[1753150241508,11.63380537,203.11,203.04,11.63380537]
[1753150241715,0.69,203.1,203.04,11.63380537]
[1753150242017,38.04,203.09,203.05,11.63380537]
[1753150242531,0.69,203.08,203.05,11.63380537]
[1753150242820,0.69,203.07,202.99,1.21294334]
[1753150243025,0.69,203.07,203.04,11.63380537]
[1753150243318,0.69,203.07,203.03,11.63380537]
[1753150243700,4.92418367,203.08,202.99,1.21294334]
[1753150243701,0.69,203.06,203.02,11.63380537]
[1753150244017,0.69,203.05,203.02,11.63380537]
[1753150244209,38.04,203.04,203.02,11.63380537]
[1753150244615,0.69,203.03,202.99,1.21294334]
[1753150244906,0.69,203.02,202.99,1.21294334]
[1753150245306,0.69,203.01,202.99,1.21294334]
[1753150245509,0.69,203.0,202.99,1.21294334]
[1753150246220,0.69,203.03,202.99,1.21294334]
[1753150246516,38.04,203.02,203.0,11.63380537]
[1753150246707,4.92465281,203.06,203.01,11.63380537]
[1753150246905,38.04,203.04,203.02,11.63380537]
[1753150247342,38.04,203.04,203.01,0.03]
[1753150247522,0.69,203.03,203.01,0.03]
[1753150247820,28.41848934,203.02,203.01,0.03]
[1753150248017,66.45848934,203.02,203.01,0.03]
[1753150248206,67.14848934,203.02,202.99,1.21294334]
[1753150248413,28.41848934,203.0,202.99,1.21294334]
[1753150248713,16.78468397,202.98,202.92,0.03]
[1753150248907,11.63380537,202.95,202.92,0.03]
[1753150249102,16.78468397,202.96,202.92,0.03]
[1753150249403,0.69,202.94,202.92,0.03]
[1753150249604,38.04,202.93,202.92,0.03]
[1753150249818,12.32380537,202.98,202.92,11.66380537]
[1753150250024,0.69,202.98,202.94,11.63380537]
[1753150250217,38.04,202.97,202.94,11.63380537]
[1753150251031,17.25088459,202.96,202.92,0.03]
[1753150251530,5.61707922,202.96,202.92,0.03]
[1753150251707,5.61707922,202.96,202.92,11.66380537]
[1753150251908,38.04,202.95,202.92,11.66380537]
[1753150252924,42.96747644,202.95,202.92,0.03]
[1753150254420,38.04,202.94,202.92,0.03]
[1753150254804,30.05689755,203.0,202.93,11.63380537]
[1753150255023,55.51468397,202.99,202.93,11.63380537]
[1753150255631,72.07484605,202.99,202.93,11.63380537]
[1753150255829,72.07484605,202.99,202.92,11.66380537]
[1753150256709,72.07484605,202.99,202.93,11.63380537]
[1753150256904,12.32380537,202.98,202.92,11.66380537]
[1753150257112,38.71,202.97,202.92,0.03]
[1753150257433,50.34380537,202.97,202.92,0.03]
[1753150257600,0.69,202.96,202.92,0.03]
[1753150257802,38.02,202.95,202.92,0.03]
[1753150258235,21.71104068,202.99,202.92,0.03]
[1753150258236,38.02,202.94,202.92,0.03]
[1753150258418,49.65380537,202.93,202.92,0.03]
[1753150258632,50.34380537,202.93,202.92,0.03]
[1753150258828,0.69,202.93,202.92,0.03]
[1753150259141,67.12848934,202.93,202.92,0.03]
[1753150259917,55.49468397,202.93,202.92,0.03]
[1753150260119,67.12848934,202.93,202.92,0.03]
[1753150260445,72.05629695,202.93,202.92,0.03]
[1753150260745,78.06869695,202.93,202.92,0.03]
[1753150261117,16.78468397,202.92,202.91,1.15147388]
[1753150261310,29.10848934,202.92,202.91,1.15147388]
[1753150261531,0.69,202.92,202.91,1.15147388]
[1753150261839,38.71,202.92,202.91,1.15147388]
[1753150262321,38.02,202.92,202.91,1.15147388]
[1753150265446,16.78468397,202.98,202.91,12.78527925]
[1753150265617,38.02,202.97,202.93,11.63380537]
[1753150266019,38.71,202.97,202.92,11.63380537]
[1753150266418,38.02,202.97,202.92,11.63380537]
[1753150266622,38.02,202.97,202.93,11.63380537]
[1753150266831,38.02,202.97,202.94,11.63380537]
[1753150267045,38.02,202.97,202.95,11.63380537]
[1753150267225,0.69,203.04,202.96,12.31380537]
[1753150267419,0.69,203.09,203.03,11.63380537]
[1753150267616,38.0,203.08,203.05,11.63380537]
[1753150267819,38.69,203.08,203.04,11.63380537]
[1753150268018,38.0,203.07,203.03,11.63380537]
[1753150268218,38.65,203.07,203.03,11.63380537]
[1753150268620,0.06,203.06,203.03,11.63380537]
[1753150268926,0.06,203.06,203.04,11.63380537]
[1753150269233,0.06,203.06,203.05,11.63380537]
[1753150269641,0.06,203.06,203.05,0.35090437]
[1753150269937,0.06,203.06,203.04,11.63380537]
[1753150270650,38.0,203.05,203.04,11.63380537]
[1753150271342,0.06,203.06,203.04,11.63380537]
[1753150271549,38.0,203.05,203.04,11.63380537]
[1753150271851,37.98,203.05,203.04,11.63380537]
[1753150272344,0.06,203.06,203.04,17.20894327]
[1753150272548,0.06,203.12,203.05,12.28380537]
[1753150272752,0.06,203.12,203.11,11.63380537]
[1753150273449,0.06,203.12,203.11,17.20724587]
[1753150275734,0.06,203.21,203.11,17.20724587]
[1753150275735,0.06,203.21,203.18,26.0]
[1753150275934,0.1,203.23,203.22,11.63380537]
[1753150276131,2.1801,203.35,203.22,12.26380537]
[1753150276340,2.1801,203.35,203.25,11.63380537]
[1753150276551,16.78468397,203.34,203.23,0.53]
[1753150276730,0.65,203.32,203.25,11.63380537]